bitfinex-derivatives/quotes_BNBF0:USTF0_20241230
["timestamp","ask_amount","ask_price","bid_price","bid_amount"]
[1735569083750,0.26541225,694.52,692.86,1.07249164]
[1735569083956,0.26541225,694.51,692.86,1.07249164]
[1735569084161,0.26541225,694.5,692.86,1.07249164]
[1735569084357,0.26541225,694.49,692.86,1.07249164]
[1735569084554,0.26541225,694.48,692.86,1.07249164]
[1735569084756,0.26541225,694.47,692.86,1.07249164]
[1735569084950,0.28786504,694.77,692.86,1.07249164]
[1735569085157,0.26540673,694.76,692.93,1.07249164]
[1735569085458,0.26540673,694.75,692.93,1.07249164]
[1735569085651,0.26540673,694.74,692.93,1.07249164]
[1735569085856,0.28786504,694.77,692.93,1.07249164]
[1735569085857,0.26540673,694.73,693.14,1.07249164]
[1735569086060,0.26540673,694.72,693.14,1.07249164]
[1735569086258,0.26540673,694.71,693.14,1.07249164]
[1735569086458,0.26540673,694.7,693.14,1.07249164]
[1735569086759,0.26540673,694.69,693.14,1.07249164]
[1735569086954,0.26540673,694.68,693.14,1.07249164]
[1735569087258,0.26540673,694.67,693.3,1.07249164]
[1735569087457,0.26540046,694.66,693.3,1.07249164]
[1735569087657,0.26540046,694.65,693.3,1.07249164]
[1735569087858,0.26540046,694.64,693.3,1.07249164]
[1735569088057,0.26540046,694.63,693.3,1.07249164]
[1735569088258,0.26540046,694.62,693.03,1.07249164]
[1735569088458,0.26540046,694.61,693.03,1.07249164]
[1735569088854,0.26540046,694.6,693.03,1.07249164]
[1735569089056,0.28786504,694.77,693.03,1.07249164]
[1735569089252,0.2654071,694.59,693.03,1.07249164]
[1735569089558,0.2654071,694.58,693.03,1.07249164]
[1735569089762,0.28786504,694.77,692.99,1.07249164]
[1735569089763,0.2654071,694.57,692.99,1.07249164]
[1735569089962,0.2654071,694.56,692.99,1.07249164]
[1735569090158,0.26540939,694.55,692.99,1.07249164]
[1735569090356,0.26540939,694.54,692.99,1.07249164]
[1735569090560,0.26540939,694.53,692.99,1.07249164]
[1735569090863,0.26540939,694.52,693.02,1.07249164]
[1735569091064,0.26540939,694.51,693.02,1.07249164]
[1735569091265,0.26540939,694.5,693.02,1.07249164]
[1735569091561,0.26540939,694.49,693.02,1.07249164]
[1735569091762,0.26540939,694.48,693.02,1.07249164]
[1735569091957,0.26540939,694.47,693.09,1.07249164]
[1735569092158,0.26540939,694.46,693.09,1.07249164]
[1735569092360,0.26540939,694.45,693.09,1.07249164]
[1735569092562,0.26540939,694.44,693.09,1.07249164]
[1735569092759,0.26540939,694.43,693.09,1.07249164]
[1735569092959,0.26540939,694.42,693.12,1.07249164]
[1735569093162,0.28786504,694.77,693.12,1.07249164]
[1735569093362,0.26540246,694.41,693.12,1.07249164]
[1735569093561,0.26540246,694.4,693.12,1.07249164]
[1735569093759,0.26540246,694.39,693.1,1.07249164]
[1735569094063,0.28786504,694.77,693.1,1.07249164]
[1735569094769,0.26536517,694.76,693.18,1.07249164]
[1735569095468,0.26536517,694.75,693.18,1.07249164]
[1735569095668,0.26536517,694.74,693.18,1.07249164]
[1735569095864,0.26536517,694.73,693.18,1.07249164]
[1735569096064,0.26536517,694.72,693.22,1.07249164]
[1735569096262,0.26536517,694.71,693.22,1.07249164]
[1735569096469,0.28786504,694.77,693.22,1.07249164]
[1735569096470,0.26536517,694.7,693.22,1.07249164]
[1735569096662,0.26536517,694.69,693.22,1.07249164]
[1735569096864,0.28786504,694.77,693.22,1.07249164]
[1735569096865,0.26536517,694.68,693.22,1.07249164]
[1735569097067,0.26536517,694.67,693.22,1.07249164]
[1735569097268,0.26536517,694.66,693.22,1.07249164]
[1735569097469,0.26536517,694.65,693.22,1.07249164]
[1735569097670,0.26536517,694.65,692.87,1.07249164]
[1735569097671,0.26536517,694.64,693.44,1.07249164]
[1735569097973,0.26534006,694.63,693.44,1.07249164]
[1735569098272,0.26534006,694.62,693.24,1.07249164]
[1735569098471,0.26534006,694.61,693.24,1.07249164]
[1735569098767,0.26534006,694.6,693.24,1.07249164]
[1735569098971,0.26534006,694.59,693.24,1.07249164]
[1735569099166,0.28786504,694.77,693.24,1.07249164]
[1735569099167,0.26534006,694.58,693.24,1.07249164]
[1735569099372,0.26534006,694.57,693.11,1.07249164]
[1735569099566,0.26534006,694.56,693.11,1.07249164]
[1735569099872,0.26534006,694.55,693.11,1.07249164]
[1735569100073,0.26534006,694.54,693.11,1.07249164]
[1735569100272,0.26534006,694.53,693.09,1.07249164]
[1735569100573,0.26534006,694.52,693.09,1.07249164]
[1735569100772,0.26534006,694.51,693.09,1.07249164]
[1735569100971,0.26539203,694.5,693.09,1.07249164]
[1735569101172,0.26539203,694.49,693.11,1.07249164]
[1735569101473,0.26539203,694.48,693.11,1.07249164]
[1735569101670,0.26539203,694.47,693.11,1.07249164]
[1735569101871,0.28799769,694.45,693.11,1.07249164]
[1735569102072,0.26539203,694.44,693.08,1.07249164]
[1735569102270,0.26539203,694.43,693.08,1.07249164]
[1735569102471,0.26539203,694.42,693.08,1.07249164]
[1735569102673,0.26539203,694.41,693.08,1.07249164]
[1735569102972,0.28802258,694.39,693.08,1.07249164]
[1735569103277,0.26536548,694.38,693.08,1.07249164]
[1735569103468,0.26536548,694.37,693.14,1.07249164]
[1735569103667,0.28803917,694.35,693.14,1.07249164]
[1735569103871,0.26536548,694.34,693.14,1.07249164]
[1735569104469,0.26536548,694.34,693.09,1.07249164]
[1735569105272,0.26536548,694.33,693.09,1.07249164]
[1735569105473,0.26536548,694.32,692.96,1.07249164]
[1735569105664,0.26536548,694.31,692.96,1.07249164]
[1735569105972,0.26536548,694.3,692.96,1.07249164]
[1735569106173,0.26536548,694.29,692.96,1.07249164]
[1735569106472,0.26536548,694.28,692.96,1.07249164]
[1735569106673,0.26536548,694.27,692.88,1.07249164]
[1735569106873,0.26536548,694.26,692.88,1.07249164]
[1735569107172,0.28803917,694.35,692.88,1.07249164]
[1735569107173,0.26536548,694.25,692.88,1.07249164]
[1735569107366,0.26536548,694.24,692.88,1.07249164]
[1735569107572,0.26536548,694.23,692.88,1.07249164]
[1735569107765,0.26536548,694.22,692.88,1.07249164]
[1735569107971,0.26553332,694.21,692.88,1.07249164]
[1735569108167,0.26553332,694.2,692.78,1.07249164]
[1735569108472,0.26553332,694.19,692.78,1.07249164]
[1735569108665,0.26553332,694.18,692.78,1.07249164]
[1735569108871,0.26553332,694.17,692.78,1.07249164]
[1735569109072,0.26553332,694.16,692.78,1.07249164]
[1735569109266,0.26553332,694.15,692.78,1.07249164]
[1735569109470,0.28803917,694.35,692.58,1.07249164]
[1735569109471,0.26553332,694.14,692.58,1.07249164]
[1735569109669,0.26553332,694.13,692.58,1.07249164]
[1735569109871,0.26553332,694.12,692.58,1.07249164]
[1735569110071,0.26553332,694.11,692.58,1.07249164]
[1735569110273,0.26553332,694.1,692.58,1.07249164]
[1735569110574,0.26548049,694.09,692.58,1.07249164]
[1735569110871,0.26548049,694.08,692.6,1.07249164]
[1735569111070,0.26548049,694.34,692.6,1.07249164]
[1735569111677,0.26548049,694.34,692.62,1.07249164]
[1735569112576,0.26548049,694.34,691.83,2.18967044]
[1735569112577,0.26548049,694.34,692.59,1.07249164]
[1735569113771,0.26548049,694.34,692.52,1.07249164]
[1735569115270,0.26548049,694.34,692.5,1.07249164]
[1735569115469,0.26552586,694.33,692.5,1.07249164]
[1735569115670,0.26552586,694.32,692.5,1.07249164]
[1735569115874,0.26552586,694.31,692.5,1.07249164]
[1735569116076,0.26552586,694.34,692.5,1.07249164]
[1735569116276,0.26552586,694.33,692.46,1.07249164]
[1735569116475,0.26552586,694.34,692.46,1.07249164]
[1735569116671,0.26552586,694.33,692.46,1.07249164]
[1735569116876,0.26552586,694.32,692.46,1.07249164]
[1735569117177,0.26552586,694.31,692.46,1.07249164]
[1735569117369,0.26552586,694.3,692.47,1.07249164]
[1735569117574,0.26552586,694.29,692.47,1.07249164]
[1735569117771,0.26552586,694.28,692.47,1.07249164]
[1735569117975,0.26552586,694.27,692.47,1.07249164]
[1735569118175,0.26551453,694.26,692.47,1.07249164]
[1735569118376,0.26551453,694.34,692.47,1.07249164]
[1735569118577,0.26551453,694.33,692.47,1.07249164]
[1735569118789,0.26551453,694.32,692.42,1.07249164]
[1735569118977,0.26551453,694.31,692.42,1.07249164]
[1735569119179,0.26551453,694.3,692.42,1.07249164]
[1735569119378,0.26551453,694.29,692.42,1.07249164]
[1735569119681,0.26551453,694.28,692.4,1.07249164]
[1735569119973,0.26551453,694.27,692.4,1.07249164]
[1735569120280,0.26551453,694.26,692.4,1.07249164]
[1735569120478,0.26551453,694.26,691.86,0.28907582]
[1735569120479,0.26551453,694.25,692.39,1.07249164]
[1735569120678,0.26553522,694.24,692.39,1.07249164]
[1735569120874,0.26553522,694.23,692.39,1.07249164]
[1735569121079,0.26553522,694.22,692.39,1.07249164]
[1735569121378,0.26553522,694.21,692.39,1.07249164]
[1735569121573,0.26553522,694.2,692.3,1.07249164]
[1735569121777,0.26553522,694.19,692.3,1.07249164]
[1735569121974,0.28803917,694.35,692.3,1.07249164]
[1735569121975,0.26553522,694.18,692.3,1.07249164]
[1735569122280,0.28803917,694.35,692.3,1.07249164]
[1735569122479,0.26558713,694.34,692.3,1.07249164]
[1735569122685,0.26558713,694.34,692.37,1.07249164]
[1735569122885,0.26558713,694.33,692.37,1.07249164]
[1735569123085,0.26558713,694.32,692.37,1.07249164]
[1735569123384,0.26558713,694.31,692.37,1.07249164]
[1735569123579,0.28803917,694.35,692.37,1.07249164]
[1735569123782,0.26554576,694.34,692.37,1.07249164]
[1735569123979,0.26554576,694.33,692.32,1.07249164]
[1735569124201,0.26554576,694.32,692.32,1.07249164]
[1735569124383,0.26554576,694.31,692.32,1.07249164]
[1735569124686,0.26554576,694.3,692.32,1.07249164]
[1735569124881,0.28803917,694.35,692.32,1.07249164]
[1735569125179,0.26552278,694.34,692.52,1.07249164]
[1735569125384,0.28803917,694.35,692.52,1.07249164]
[1735569125385,0.26552278,694.33,692.52,1.07249164]
[1735569125580,0.26552278,694.32,692.52,1.07249164]
[1735569125782,0.26552278,694.31,692.53,1.07249164]
[1735569125980,0.26552278,694.3,692.53,1.07249164]
[1735569126185,0.26552278,694.29,692.53,1.07249164]
[1735569126385,0.26552278,694.28,692.53,1.07249164]
[1735569126582,0.26552278,694.27,692.53,1.07249164]
[1735569126782,0.26552278,694.34,692.53,1.07249164]
[1735569127084,0.26552278,694.33,692.5,1.07249164]
[1735569127288,0.26552278,694.32,692.5,1.07249164]
[1735569127584,0.26552703,694.31,692.5,1.07249164]
[1735569127784,0.28803917,694.35,692.5,1.07249164]
[1735569127785,0.26552703,694.3,692.5,1.07249164]
[1735569127985,0.26552703,694.29,692.34,1.07249164]
[1735569128183,0.26552703,694.28,692.34,1.07249164]
[1735569128383,0.26552703,694.27,692.34,1.07249164]
[1735569128689,0.26552703,694.26,692.34,1.07249164]
[1735569128885,0.26552703,694.25,692.4,1.07249164]
[1735569129087,0.26552703,694.24,692.4,1.07249164]
[1735569129284,0.26552703,694.23,692.4,1.07249164]
[1735569129583,0.26552703,694.22,692.4,1.07249164]
[1735569129889,0.28803917,694.35,691.87,0.79655018]
[1735569129890,0.26550358,694.21,692.43,1.07249164]
[1735569130089,0.28810556,694.19,692.43,1.07249164]
[1735569130289,0.26550358,694.18,692.43,1.07249164]
[1735569130587,0.28811801,694.16,692.43,1.07249164]
[1735569130893,0.26550358,694.15,692.43,1.07249164]
[1735569131089,0.26550358,694.15,692.4,1.07249164]
[1735569131689,0.26550177,694.14,692.4,1.07249164]
[1735569131886,0.26550177,694.15,692.4,1.07249164]
[1735569132085,0.26550177,694.14,692.51,1.07249164]
[1735569132284,0.26550177,694.13,692.51,1.07249164]
[1735569132487,0.28811801,694.16,692.51,1.07249164]
[1735569132792,0.26551873,694.15,692.51,1.07249164]
[1735569132989,0.26551873,694.14,692.51,1.07249164]
[1735569133190,0.26551873,694.13,692.51,1.07249164]
[1735569133390,0.26551873,694.12,692.51,1.07249164]
[1735569133590,0.28811801,694.16,692.5,1.07249164]
[1735569133591,0.26551873,694.11,692.5,1.07249164]
[1735569133790,0.26551873,694.1,692.5,1.07249164]
[1735569133991,0.26551873,694.09,692.5,1.07249164]
[1735569134184,0.26551873,694.08,692.5,1.07249164]
[1735569134385,0.26551873,694.07,692.45,1.07249164]
[1735569134588,0.26551873,694.06,692.45,1.07249164]
[1735569134789,0.26551873,694.05,692.45,1.07249164]
[1735569134988,0.28811801,694.16,692.45,1.07249164]
[1735569135190,0.2655788,694.15,692.45,1.07249164]
[1735569135392,0.2655788,694.14,692.45,1.07249164]
[1735569135593,0.2655788,694.13,692.45,1.07249164]
[1735569135793,0.28811801,694.16,692.45,1.07249164]
[1735569135794,0.2655788,694.12,692.45,1.07249164]
[1735569136094,0.2655788,694.11,692.45,1.07249164]
[1735569136287,0.2655788,694.1,692.45,1.07249164]
[1735569136493,0.2655788,694.09,692.45,1.07249164]
[1735569136695,0.28811801,694.16,691.87,0.79655018]
[1735569136696,0.2655788,694.08,692.43,1.07249164]
[1735569136990,0.2655788,694.07,692.43,1.07249164]
[1735569137190,0.28816367,694.05,692.43,1.07249164]
[1735569137395,0.2655788,694.04,692.43,1.07249164]
[1735569137597,0.28817613,694.02,692.43,1.07249164]
[1735569137897,0.26556873,694.01,692.47,1.07249164]
[1735569138098,0.28818859,693.99,692.47,1.07249164]
[1735569138296,0.26558968,693.98,692.47,1.07249164]
[1735569138690,0.26558968,693.98,692.5,1.07249164]
[1735569139399,0.26558968,693.97,692.5,1.06684911]
[1735569139702,0.26558968,693.96,692.5,1.06684911]
[1735569139898,0.26558968,693.95,692.5,1.06684911]
[1735569140096,0.26558968,693.98,692.21,1.07249164]
[1735569140295,0.2656034,693.97,692.21,1.07249164]
[1735569140498,0.2656034,693.96,692.21,1.07249164]
[1735569140691,0.2656034,693.95,692.21,1.07249164]
[1735569140894,0.2656034,693.94,692.21,1.07249164]
[1735569141096,0.2656034,693.93,692.21,1.07249164]
[1735569141293,0.2656034,693.92,692.21,1.07249164]
[1735569141592,0.55382521,693.91,692.21,1.07249164]
[1735569141798,0.2656034,693.9,692.21,1.07249164]
[1735569142397,0.2656034,693.9,692.2,1.07249164]
[1735569142798,0.26565065,693.89,692.2,1.07249164]
[1735569143001,0.26565065,693.88,692.2,1.07249164]
[1735569143202,0.26565065,693.87,692.2,1.07249164]
[1735569143501,0.28824673,693.85,691.86,0.28907582]
[1735569143694,0.26565065,693.84,691.86,0.28907582]
[1735569144295,0.2882592,693.82,691.86,0.28907582]
[1735569144501,0.26565065,693.81,691.86,0.28907582]
[1735569144696,0.28827166,693.79,691.86,0.28907582]
[1735569144901,0.26565065,693.78,691.86,0.28907582]
[1735569145294,0.28828413,693.76,691.86,0.28907582]
[1735569145497,0.26565108,693.75,691.86,0.28907582]
[1735569145901,0.28829659,693.73,691.86,0.28907582]
[1735569146202,0.26565532,693.72,691.86,0.28907582]
[1735569147201,0.28830906,693.7,691.86,0.28907582]
[1735569147404,0.26565532,693.69,691.98,1.07249164]
[1735569148003,0.28830906,693.7,691.98,1.07249164]
[1735569148004,0.26565532,693.68,691.98,1.07249164]
[1735569148201,0.26568701,693.67,691.98,1.07249164]
[1735569148397,0.26568701,693.66,691.98,1.07249164]
[1735569148603,0.26568701,693.65,691.96,1.07249164]
[1735569148802,0.26568701,693.64,691.96,1.07249164]
[1735569149003,0.26568701,693.63,691.96,1.07249164]
[1735569149200,0.28830906,693.7,691.96,1.07249164]
[1735569149400,0.26571046,693.69,691.87,0.79879638]
[1735569149604,0.28830906,693.7,691.87,0.79879638]
[1735569149605,0.26571046,693.68,691.87,0.79879638]
[1735569149906,0.26571046,693.67,691.87,0.79879638]
[1735569150108,0.26571046,693.66,691.87,0.79879638]
[1735569150309,0.26571046,693.65,691.87,0.79879638]
[1735569150511,0.26571046,693.64,691.87,0.79879638]
[1735569150708,0.26571046,693.63,691.87,0.79879638]
[1735569150906,0.26571046,693.62,691.87,0.79879638]
[1735569151108,0.26571046,693.61,691.87,0.79879638]
[1735569151308,0.26571046,693.61,690.02,3.03489875]
[1735569151309,0.26571046,693.6,691.76,1.07643026]
[1735569151508,0.26571046,693.59,691.76,1.07643026]
[1735569151703,0.26571046,693.58,691.76,1.07643026]
[1735569152008,0.26571046,693.57,691.76,1.07643026]
[1735569152209,0.26571046,693.56,691.62,1.07643026]
[1735569152409,0.26571046,693.55,691.62,1.07643026]
[1735569152610,0.26571046,693.54,691.62,1.07643026]
[1735569152813,0.26571046,693.53,691.62,1.07643026]
[1735569153011,0.26571046,693.52,691.62,1.07643026]
[1735569153212,0.26571046,693.69,691.62,1.07643026]
[1735569153409,0.26571046,693.68,691.6,1.07643026]
[1735569153611,0.28830906,693.7,691.6,1.07643026]
[1735569153612,0.26571046,693.69,691.6,1.07643026]
[1735569153811,0.26569239,693.68,691.6,1.07643026]
[1735569154114,0.26569239,693.67,691.61,0.28918031]
[1735569154414,0.26569239,693.66,691.75,1.07643026]
[1735569154609,0.26569239,693.69,691.75,1.07643026]
[1735569154809,0.26569239,693.68,691.61,0.28918031]
[1735569155011,0.26569239,693.67,691.61,0.28918031]
[1735569155211,0.26569239,693.66,691.61,0.28918031]
[1735569155512,0.28830906,693.7,691.61,0.28918031]
[1735569155513,0.26569239,693.65,691.61,0.28918031]
[1735569155708,0.28830906,693.7,691.61,0.28918031]
[1735569155912,0.26572678,693.64,691.61,0.28918031]
[1735569156208,0.26572678,693.63,691.61,0.28918031]
[1735569156415,0.26572678,693.69,691.79,1.07465221]
[1735569156607,0.26572678,693.68,691.79,1.07465221]
[1735569156812,0.26572678,693.67,691.79,1.07465221]
[1735569157012,0.26572678,693.66,691.79,1.07465221]
[1735569157214,0.26572678,693.65,691.79,1.07465221]
[1735569157409,0.26572678,693.64,691.61,0.28918031]
[1735569157609,0.26572678,693.63,691.61,0.28918031]
[1735569157815,0.26572678,693.62,691.61,0.28918031]
[1735569158014,0.26572678,693.61,691.61,0.28918031]
[1735569158208,0.26572678,693.69,691.61,0.28918031]
[1735569160217,0.26572678,693.68,691.61,0.28918031]
[1735569160415,0.26572678,693.67,691.61,0.28918031]
[1735569160616,0.28830906,693.7,691.61,0.28918031]
[1735569160813,0.26579432,693.69,691.61,0.28918031]
[1735569161116,0.26579432,693.68,691.61,0.28918031]
[1735569161316,0.28830906,693.7,691.61,0.28918031]
[1735569161620,0.26579356,693.69,691.61,0.28918031]
[1735569161819,0.26579356,693.68,691.61,0.28918031]
[1735569162120,0.26579356,693.67,691.61,0.28918031]
[1735569163315,0.26580506,693.66,691.61,0.28918031]
[1735569163718,0.26580506,693.65,691.61,0.28918031]
[1735569163921,0.26580506,693.64,691.61,0.28918031]
[1735569164123,0.26580506,693.63,691.61,0.28918031]
[1735569164416,0.26580506,693.62,691.61,0.28918031]
[1735569164621,0.26580506,693.61,691.61,0.28918031]
[1735569164815,0.28830906,693.7,691.61,0.28918031]
[1735569164816,0.26580506,693.6,691.61,0.28918031]
[1735569165019,0.26580506,693.59,691.61,0.28918031]
[1735569165221,0.26580506,693.58,691.61,0.28918031]
[1735569165421,0.26580506,693.57,691.43,1.07465221]
[1735569165722,0.26580506,693.56,691.43,1.07465221]
[1735569165920,0.26583847,693.55,691.43,1.07465221]
[1735569166116,0.28830906,693.7,691.32,1.07465221]
[1735569166117,0.26583847,693.54,691.32,1.07465221]
[1735569166329,0.26583847,693.53,691.32,1.07465221]
[1735569166521,0.26583847,693.52,691.32,1.07465221]
[1735569166724,0.26583847,693.51,691.35,1.07465221]
[1735569166919,0.26583847,693.5,691.35,1.07465221]
[1735569167125,0.26583847,693.49,691.36,0.28928488]
[1735569167323,0.26583847,693.48,691.36,0.28928488]
[1735569167520,0.26583847,693.47,691.36,0.28928488]
[1735569167724,0.26583847,693.46,691.36,0.28928488]
[1735569167926,0.26583847,693.45,691.44,1.07465221]
[1735569168120,0.26583847,693.44,691.44,1.07465221]
[1735569168325,0.28830906,693.7,691.44,1.07465221]
[1735569168521,0.26583142,693.69,691.44,1.07465221]
[1735569168726,0.26583142,693.68,691.49,1.07465221]
[1735569169025,0.26583142,693.67,691.49,1.07465221]
[1735569169225,0.26583142,693.66,691.49,1.07465221]
[1735569169424,0.26583142,693.65,691.49,1.07465221]
[1735569169627,0.26583142,693.64,691.49,1.07465221]
[1735569169828,0.26583142,693.63,691.49,1.07465221]
[1735569170023,0.28830906,693.7,691.49,1.07465221]
[1735569170024,0.26583142,693.62,691.49,1.07465221]
[1735569170225,0.26583142,693.61,691.49,1.07465221]
[1735569170528,0.26583142,693.6,691.49,1.07465221]
[1735569170728,0.26583142,693.59,691.49,1.07465221]
[1735569171027,0.26585513,693.58,691.49,1.07465221]
[1735569171227,0.26585513,693.57,691.49,1.07465221]
[1735569171427,0.26585513,693.56,691.49,1.07465221]
[1735569171625,0.26585513,693.55,691.49,1.07465221]
[1735569171826,0.26585513,693.54,691.49,1.07465221]
[1735569172028,0.26585513,693.53,691.48,1.07465221]
[1735569172327,0.26585513,693.52,691.48,1.07465221]
[1735569172628,0.26585513,693.51,691.48,1.07465221]
[1735569172823,0.26585513,693.5,691.48,1.07465221]
[1735569173028,0.26585513,693.49,691.47,1.07465221]
[1735569173222,0.26585513,693.48,691.47,1.07465221]
[1735569173426,0.28830906,693.7,691.47,1.07465221]
[1735569173726,0.26584983,693.69,691.47,1.07465221]
[1735569173926,0.26584983,693.68,691.47,1.07465221]
[1735569174126,0.26584983,693.67,691.47,1.07465221]
[1735569174434,0.26584983,693.66,691.47,1.07465221]
[1735569174730,0.26584983,693.65,691.47,1.07465221]
[1735569174926,0.26584983,693.64,691.47,1.07465221]
[1735569175125,0.28830906,693.7,691.47,1.07465221]
[1735569175126,0.26584983,693.63,691.47,1.07465221]
[1735569175330,0.26584983,693.62,691.52,1.07465221]
[1735569175523,0.26584983,693.61,691.52,1.07465221]
[1735569175723,0.26584983,693.6,691.52,1.07465221]
[1735569175924,0.26584983,693.59,691.52,1.07465221]
[1735569176127,0.26584983,693.58,691.52,1.07465221]
[1735569176328,0.26584983,693.57,691.47,1.07465221]
[1735569176525,0.26584983,693.56,691.47,1.07465221]
[1735569176730,0.265852,693.55,691.47,1.07465221]
[1735569176930,0.265852,693.54,691.47,1.07465221]
[1735569177126,0.265852,693.53,691.47,1.07465221]
[1735569177330,0.265852,693.52,691.51,1.07465221]
[1735569177530,0.265852,693.51,691.51,1.07465221]
[1735569177829,0.28830906,693.7,691.37,0.79615106]
[1735569177830,0.265852,693.5,691.48,1.07465221]
[1735569178032,0.265852,693.49,691.48,1.07465221]
[1735569178232,0.265852,693.48,691.48,1.07465221]
[1735569178433,0.265852,693.47,691.48,1.07465221]
[1735569178629,0.265852,693.46,691.48,1.07465221]
[1735569178825,0.265852,693.69,691.48,1.07465221]
[1735569179027,0.265852,693.68,691.51,1.07465221]
[1735569179326,0.265852,693.67,691.51,1.07465221]
[1735569179530,0.265852,693.66,691.51,1.07465221]
[1735569179729,0.265852,693.65,691.51,1.07465221]
[1735569179928,0.265852,693.64,691.51,1.07465221]
[1735569180235,0.265852,693.63,691.36,0.28928488]
[1735569180430,0.265852,693.62,691.36,0.28928488]
[1735569180633,0.265852,693.61,691.36,0.28928488]
[1735569180834,0.28830906,693.7,691.36,0.28928488]
[1735569181036,0.26589066,693.6,691.36,0.28928488]
[1735569181236,0.26588546,693.59,691.36,0.28928488]
[1735569181432,0.26588546,693.58,691.36,0.28928488]
[1735569181630,0.26588546,693.57,691.36,0.28928488]
[1735569181832,0.26588546,693.56,691.36,0.28928488]
[1735569182034,0.26588546,693.55,691.36,0.28928488]
[1735569182234,0.26588546,693.54,691.36,0.28928488]
[1735569182437,0.26588546,693.53,691.37,1.07465221]
[1735569182637,0.26588546,693.52,691.37,1.07465221]
[1735569182938,0.26588546,693.51,691.37,1.07465221]
[1735569183131,0.26588546,693.5,691.37,1.07465221]
[1735569183335,0.26588546,693.49,691.37,1.07465221]
[1735569183538,0.26590145,693.48,691.37,1.07465221]
[1735569183732,0.26590145,693.47,691.37,1.07465221]
[1735569183939,0.26590145,693.46,691.36,0.28928488]
[1735569184241,0.26590145,693.45,691.36,0.28928488]
[1735569184434,0.26590145,693.44,691.36,0.28928488]
[1735569184634,0.26590145,693.43,691.59,1.07465221]
[1735569184836,0.26590145,693.42,691.59,1.07465221]
[1735569185031,0.26590145,693.41,691.59,1.07465221]
[1735569185236,0.26590145,693.4,691.59,1.07465221]
[1735569185436,0.26590145,693.39,691.59,1.07465221]
[1735569185638,1.07056489,693.6,691.59,1.07465221]
[1735569185639,0.26591686,693.38,691.59,1.07465221]
[1735569185839,0.26591686,693.37,691.57,1.07465221]
[1735569186033,0.26591686,693.36,691.57,1.07465221]
[1735569186236,0.26591686,693.35,691.57,1.07465221]
[1735569186433,0.26591686,693.34,691.57,1.07465221]
[1735569186740,0.26591686,693.33,691.53,1.07465221]
[1735569186934,0.26591686,693.32,691.53,1.07465221]
[1735569187134,0.26591686,693.31,691.53,1.07465221]
[1735569187436,0.26591686,693.3,691.53,1.07465221]
[1735569187636,0.26591686,693.29,691.54,1.07465221]
[1735569187840,0.26591686,693.28,691.54,1.07465221]
[1735569188041,0.63652547,693.63,691.54,1.07465221]
[1735569188241,1.07056489,693.64,691.54,1.07465221]
[1735569188242,0.90239312,693.62,691.54,1.07465221]
[1735569188443,0.26586765,693.61,691.54,1.07465221]
[1735569188643,0.90239312,693.6,691.72,1.07465221]
[1735569188843,0.90239312,693.59,691.72,1.07465221]
[1735569189145,0.90239312,693.58,691.72,1.07465221]
[1735569189345,0.90239312,693.57,691.72,1.07465221]
[1735569189546,0.90239312,693.56,691.72,1.07465221]
[1735569189743,0.90239312,693.55,691.78,1.07465221]
[1735569189941,0.26586765,693.54,691.78,1.07465221]
[1735569190137,0.26586765,693.53,691.78,1.07465221]
[1735569190438,0.26584683,693.52,691.78,1.07465221]
[1735569190642,0.26584049,693.51,691.81,1.07465221]
[1735569190837,0.26584049,693.5,691.81,1.07465221]
[1735569191043,1.07056489,693.59,691.81,1.07465221]
[1735569191044,0.26584049,693.49,691.81,1.07465221]
[1735569191237,0.26584592,693.48,691.81,1.07465221]
[1735569191443,0.26584592,693.47,691.81,1.07465221]
[1735569191641,0.26584592,693.46,691.81,1.07465221]
[1735569191842,0.26584592,693.45,691.89,1.07465221]
[1735569192042,0.26584592,693.44,691.89,1.07465221]
[1735569192238,0.26584909,693.43,691.89,1.07465221]
[1735569192437,0.26584909,693.42,691.89,1.07465221]
[1735569192643,0.26584909,693.41,691.89,1.07465221]
[1735569192842,0.28830906,693.7,691.84,1.07465221]
[1735569192843,0.26584909,693.4,691.84,1.07465221]
[1735569193044,0.26584909,693.39,691.84,1.07465221]
[1735569193245,0.26587527,693.38,691.84,1.07465221]
[1735569193443,0.26587527,693.37,691.84,1.07465221]
[1735569193643,0.26587527,693.36,691.84,1.07465221]
[1735569193943,2.43194328,693.66,691.71,1.07465221]
[1735569193944,0.26587527,693.35,691.71,1.07465221]
[1735569194143,0.26587527,693.34,691.71,1.07465221]
[1735569194343,0.26587527,693.33,691.71,1.07465221]
[1735569194544,0.26587527,693.32,691.71,1.07465221]
[1735569194739,0.26587527,693.32,691.61,1.07465221]
[1735569194740,0.26587527,693.31,691.7,1.07465221]
[1735569194941,0.26587527,693.3,691.7,1.07465221]
[1735569195242,0.26587527,693.29,691.7,1.07465221]
[1735569195442,0.26587527,693.28,691.7,1.07465221]
[1735569195643,1.07056489,693.64,691.7,1.07465221]
[1735569195838,0.26589494,693.27,691.7,1.07465221]
[1735569196043,1.07056489,693.57,691.61,1.07465221]
[1735569196940,1.07056489,693.48,691.59,1.07465221]
[1735569197445,0.26590674,693.47,691.59,1.07465221]
[1735569197745,0.26590674,693.46,691.59,1.07465221]
[1735569197945,0.26590674,693.45,691.54,1.07465221]